bitfinex/quotes_ETHUSD_20250324
["timestamp","ask_amount","ask_price","bid_price","bid_amount"]
[1742807559291,6.041195,2092.1,2091.9,0.18340664]
[1742807559474,6.041195,2092.1,2091.9,5.5152203]
[1742807559661,6.041195,2092.1,2092.0,4.78011]
[1742807559861,6.041195,2092.7,2092.6,4.77874]
[1742807560061,6.041195,2092.7,2092.5,4.77896]
[1742807560264,3.0,2092.6,2092.3,4.77926]
[1742807560460,3.0,2092.6,2092.3,4.77929]
[1742807560661,10.819795,2092.7,2092.3,4.77929]
[1742807560861,12.4600005,2092.7,2092.3,4.77929]
[1742807561280,7.77877,2092.6,2092.4,0.18264766]
[1742807561457,4.77877,2092.6,2092.2,4.77962]
[1742807561654,7.77877,2092.6,2092.2,4.77962]
[1742807561888,7.77877,2092.6,2092.3,0.18264766]
[1742807562065,7.77877,2092.6,2092.2,4.77962]
[1742807562390,3.0,2092.6,2092.3,4.96192766]
[1742807562593,3.0,2092.6,2092.4,4.77909]
[1742807563086,6.041195,2092.7,2092.5,0.18264766]
[1742807563455,6.041195,2092.7,2092.5,4.96145766]
[1742807563661,6.041195,2092.7,2092.5,6.45402643]
[1742807564101,6.041195,2092.7,2092.5,0.18264766]
[1742807564771,10.819485,2092.8,2092.5,0.18264766]
[1742807564974,10.819485,2092.8,2092.6,0.9707539]
[1742807565204,10.819485,2092.8,2092.7,0.18037324]
[1742807565411,13.1612395,2092.8,2092.7,0.18037324]
[1742807565706,8.3829495,2092.8,2092.7,0.18037324]
[1742807566006,7.6009495,2092.8,2092.7,0.18037324]
[1742807566608,6.041195,2092.8,2092.7,0.18037324]
[1742807568110,3.0,2093.0,2092.7,4.95881324]
[1742807568299,3.0,2093.0,2092.7,5.51001324]
[1742807571309,3.0,2093.0,2092.7,0.73157324]
[1742807571492,7.77787,2093.0,2092.7,0.73157324]
[1742807572513,7.77787,2093.0,2092.7,5.51007324]
[1742807573785,6.041195,2093.1,2092.9,4.77795]
[1742807574183,6.041195,2093.1,2093.0,0.17611959]
[1742807575008,6.041195,2093.1,2092.8,14.18835]
[1742807575212,6.041195,2093.1,2092.9,0.17611959]
[1742807575714,6.041195,2093.1,2092.9,4.95416959]
[1742807576017,6.041195,2093.1,2093.0,6.3321707]
[1742807576315,6.041195,2093.1,2093.0,0.5512]
[1742807576483,6.041195,2093.1,2093.0,0.17611959]
[1742807577904,6.041195,2093.1,2093.0,4.95394959]
[1742807579413,6.041195,2093.3,2093.0,4.95394959]
[1742807579714,6.041195,2093.3,2093.0,4.95382959]
[1742807580118,6.041195,2093.3,2093.0,5.91827302]
[1742807580793,10.818405,2093.3,2093.0,5.91827302]
[1742807580998,10.818405,2093.3,2093.0,1.14056302]
[1742807581686,6.041195,2093.3,2093.0,5.91829302]
[1742807582319,3.0,2093.3,2093.0,7.50620332]
[1742807582523,3.0,2093.3,2093.1,4.77753]
[1742807582690,3.0,2093.3,2093.1,0.17468841]
[1742807583091,7.77715,2093.3,2093.1,0.17468841]
[1742807584123,4.77737,2093.2,2093.1,0.17468841]
[1742807585824,8.59532,2093.3,2093.1,0.17468841]
[1742807587527,7.77722,2093.3,2093.1,0.17468841]
[1742807587853,3.0,2093.3,2093.1,0.17468841]
[1742807587995,12.55407,2093.4,2093.1,0.17468841]
[1742807588197,3.0,2093.3,2093.1,0.17468841]
[1742807588397,7.77716,2093.3,2093.1,0.17468841]
[1742807588898,7.77716,2093.3,2093.1,0.61906093]
[1742807589099,12.55452,2093.3,2093.1,0.61906093]
[1742807589732,7.77716,2093.3,2093.1,0.61906093]
[1742807590032,3.0,2093.3,2093.1,0.61906093]
[1742807591330,7.77718,2093.3,2093.1,0.17468841]
[1742807592718,4.77737,2093.2,2093.1,0.17468841]
[1742807592927,5.58337,2093.2,2093.1,0.17468841]
[1742807593999,6.041195,2093.2,2093.1,0.62106285]
[1742807594203,6.041195,2093.2,2093.1,5.39866285]
[1742807596138,6.041195,2093.2,2093.1,0.62106285]
[1742807599844,9.041195,2093.3,2093.1,0.62106285]
[1742807600447,9.041195,2093.3,2093.2,0.44637444]
[1742807600448,13.818345,2093.3,2093.2,0.44637444]
[1742807600817,13.818345,2093.3,2093.2,0.61916875]
[1742807601655,13.818345,2093.3,2093.2,0.17279431]
[1742807601821,13.818345,2093.3,2093.2,0.61939747]
[1742807602344,9.041195,2093.3,2093.2,0.61939747]
[1742807603353,13.818335,2093.3,2093.2,0.61939747]
[1742807605041,15.7584595,2093.3,2093.2,0.61939747]
[1742807610666,13.818335,2093.3,2093.2,0.61939747]
[1742807617954,14.649435,2093.3,2093.2,0.61939747]
[1742807618254,14.649435,2093.3,2093.2,0.44660316]
[1742807618640,19.277435,2093.3,2093.2,0.44660316]
[1742807619021,19.277435,2093.3,2092.7,0.951383]
[1742807619022,4.77805,2092.9,2092.8,0.44660316]
[1742807619228,5.56295,2092.9,2092.8,0.62036544]
[1742807620554,5.56295,2092.9,2092.8,0.17376228]
[1742807620758,10.34123,2092.9,2092.7,0.951383]
[1742807620927,10.34123,2092.9,2092.8,0.17527776]
[1742807621127,10.34123,2092.9,2092.7,0.951383]
[1742807621327,4.77828,2092.8,2092.7,0.951383]
[1742807621530,10.819475,2092.8,2092.7,0.951383]
[1742807622256,10.819475,2092.8,2092.7,1.39779168]
[1742807622458,6.041195,2092.8,2092.7,1.39779168]
[1742807622757,6.041195,2092.8,2092.7,3.02943385]
[1742807624045,6.041195,2092.8,2092.7,1.94899168]
[1742807624231,6.041195,2092.8,2092.7,1.39779168]
[1742807625559,10.819475,2092.8,2092.7,1.39779168]
[1742807626356,10.819475,2092.8,2092.7,1.57306944]
[1742807626551,11.570775,2092.8,2092.7,0.62168644]
[1742807626752,13.2056645,2092.8,2092.7,0.62168644]
[1742807627851,11.570775,2092.8,2092.7,0.62168644]
[1742807628931,11.570775,2092.8,2092.7,0.17527776]
[1742807629762,10.819475,2092.8,2092.7,0.17527776]
[1742807631867,6.041195,2092.8,2092.7,0.17527776]
[1742807632760,10.819475,2092.8,2092.7,0.17527776]
[1742807634367,10.819475,2092.8,2092.7,0.62142818]
[1742807635366,10.819475,2092.8,2092.7,0.17527776]
[1742807636866,11.609675,2092.8,2092.7,0.17527776]
[1742807638754,16.388135,2092.8,2092.4,5.33032]
[1742807639065,16.388135,2092.8,2092.5,1.12528629]
[1742807639469,4.77854,2092.7,2092.5,1.57132367]
[1742807640758,11.609675,2092.8,2092.5,1.57132367]
[1742807641279,10.819475,2092.8,2092.5,1.57132367]
[1742807641777,10.819475,2092.8,2092.6,0.44603738]
[1742807642278,10.819475,2092.8,2092.7,0.16214468]
[1742807643258,10.819475,2092.8,2092.7,0.60818206]
[1742807645675,13.819475,2092.8,2092.7,0.60818206]
[1742807648296,16.5629485,2092.8,2092.7,0.60818206]
[1742807650495,16.5629485,2092.8,2092.7,0.16214468]
[1742807650860,7.77868,2092.7,2092.4,0.94821975]
[1742807651957,7.77868,2092.7,2092.5,0.44702476]
[1742807652381,4.77878,2092.6,2092.5,0.44702476]
[1742807652689,10.819975,2092.6,2092.5,0.44702476]
[1742807653658,6.041195,2092.6,2092.5,5.77719476]
[1742807653864,6.041195,2092.6,2092.5,6.44973621]
[1742807656094,6.041195,2092.6,2092.5,6.61217564]
[1742807658497,6.041195,2092.8,2092.5,6.61217564]
[1742807658798,6.041195,2092.8,2092.5,11.39091564]
[1742807658967,6.041195,2092.8,2092.5,6.61205564]
[1742807659167,6.041195,2092.8,2092.5,11.39090564]
[1742807659488,6.041195,2092.8,2092.6,1.23391254]
[1742807660087,6.041195,2092.8,2092.7,0.16243943]
[1742807660995,6.041195,2092.8,2092.7,0.60946419]
[1742807666206,13.819475,2092.8,2092.7,0.60946419]
[1742807666399,14.642675,2092.8,2092.7,0.60946419]
[1742807666588,17.0625335,2092.8,2092.7,0.60946419]
[1742807668393,17.0625335,2092.8,2092.7,0.16243943]
[1742807668783,9.55732,2092.7,2092.4,0.94821975]
[1742807669719,3.8198,2092.6,2092.0,31.7461]
[1742807669911,3.0,2092.4,2092.1,3.83076337]
[1742807670123,3.0,2092.4,2092.3,4.77942]
[1742807670612,6.041195,2092.5,2092.3,5.33062]
[1742807670808,6.041195,2092.5,2092.3,5.33046]
[1742807671205,6.041195,2092.5,2092.4,0.16239735]
[1742807671515,6.041195,2092.5,2092.4,0.60975095]
[1742807673286,6.041195,2092.5,2092.4,6.55745939]
[1742807673506,6.041195,2092.5,2092.4,11.18245939]
[1742807674897,0.7542,2093.0,2092.8,4.77823]
[1742807675098,6.041195,2093.1,2092.9,4.94053577]
[1742807675328,6.041195,2093.1,2092.9,4.93673877]
[1742807675541,6.041195,2093.1,2092.9,5.38409237]
[1742807675696,6.041195,2093.1,2093.0,4.77783]
[1742807675903,6.041195,2093.1,2093.0,4.93847954]
[1742807676836,6.041195,2093.5,2093.3,4.77703]
[1742807677043,6.041195,2093.5,2093.3,4.77701]
[1742807677332,6.041195,2093.5,2093.4,5.48821237]
[1742807677633,11.631055,2094.0,2093.7,4.77615]
[1742807677786,11.631055,2094.0,2093.8,0.15909239]
[1742807678220,11.631055,2094.0,2093.6,4.77639]
[1742807678453,14.631055,2094.0,2093.9,0.15909239]
[1742807678631,14.631055,2094.0,2093.6,9.5527]
[1742807678818,14.631055,2094.0,2093.9,0.15909239]
[1742807679016,14.631055,2094.0,2093.6,9.5527]
[1742807679241,14.631055,2094.0,2093.7,4.77622]
[1742807679533,11.631055,2094.0,2093.8,0.15909239]
[1742807679909,11.631055,2094.0,2093.7,4.77622]
[1742807680108,11.631055,2094.0,2093.8,0.15909239]
[1742807680297,10.816755,2094.0,2093.7,4.77622]
[1742807680498,10.816755,2094.0,2093.8,0.15909239]
[1742807680831,10.816755,2094.0,2093.7,4.77622]
[1742807681131,4.77579,2093.9,2093.5,4.77666]
[1742807681332,4.77579,2093.9,2093.8,0.15909239]
[1742807681492,4.77579,2093.9,2093.5,9.55323]
[1742807681695,4.77579,2093.9,2093.6,0.15909239]
[1742807682119,10.816985,2093.9,2093.6,0.15909239]
[1742807682725,10.816985,2093.9,2093.8,0.9613185]
[1742807682925,10.816985,2093.9,2093.8,1.1154873]
[1742807684426,10.816985,2093.9,2093.8,0.1541688]
[1742807684823,10.816985,2093.9,2093.5,4.77656]
[1742807685024,10.816985,2093.9,2093.8,0.1541688]
[1742807685197,10.816985,2093.9,2093.5,4.77656]
[1742807685198,12.6762395,2093.9,2093.5,4.77656]
[1742807685398,10.816985,2093.9,2093.8,0.1541688]
[1742807685626,10.816985,2093.9,2093.7,0.95685448]
[1742807685627,4.776,2093.8,2093.7,0.95685448]
[1742807686226,4.776,2093.8,2093.7,1.11102328]
[1742807688901,10.817035,2093.9,2093.7,1.11102328]
[1742807689834,10.817035,2093.9,2093.7,0.1541688]
[1742807690336,10.817035,2093.9,2093.5,4.77656]
[1742807690632,10.817035,2093.9,2093.6,0.1541688]
[1742807690833,15.592965,2093.9,2093.6,0.1541688]
[1742807691330,10.817035,2093.9,2093.6,0.1541688]
[1742807692307,10.817035,2093.9,2093.6,4.9306088]
[1742807694240,10.817035,2093.9,2093.5,4.77656]
[1742807694422,10.817035,2093.9,2093.5,9.55317]
[1742807694628,10.817035,2093.9,2093.6,4.91793965]
[1742807696743,6.041195,2093.9,2093.6,9.69438965]
[1742807696917,6.041195,2093.9,2093.6,4.91793965]
[1742807697117,6.041195,2093.9,2093.6,9.69429965]
[1742807697346,6.041195,2093.9,2093.6,4.91784965]
[1742807698047,10.816985,2093.9,2093.6,4.91784965]
[1742807699218,15.592905,2093.9,2093.6,0.14148965]
[1742807699418,17.4521955,2093.9,2093.6,0.14148965]
[1742807700051,12.6762755,2093.9,2093.6,0.14148965]
[1742807700520,17.4522255,2093.9,2093.6,0.14148965]
[1742807700719,18.2555255,2093.9,2093.6,0.14148965]
[1742807701348,13.4795755,2093.9,2093.6,0.14148965]
[1742807701551,13.4795755,2093.9,2093.6,4.91793965]
[1742807705354,18.2555155,2093.9,2093.6,0.14148965]
[1742807706755,13.4795755,2093.9,2093.6,0.14148965]
[1742807706955,11.620285,2093.9,2093.6,0.14148965]
[1742807708534,4.77608,2093.8,2093.6,0.14148965]
[1742807708739,11.620355,2093.9,2093.6,0.14148965]
[1742807709164,16.396275,2093.9,2093.6,0.14148965]
[1742807710161,11.620355,2093.9,2093.6,0.14148965]
[1742807711335,6.041195,2094.5,2094.0,0.5512]
[1742807711665,6.860495,2094.8,2094.5,4.77432]
[1742807711958,7.77395,2094.7,2094.6,0.13875546]
[1742807712160,9.2373945,2094.7,2094.6,0.13875546]
[1742807712456,4.77456,2094.5,2094.1,9.94544]
[1742807712661,5.53996,2094.5,2094.2,4.77505]
[1742807714163,10.31455,2094.5,2094.1,9.39431]
[1742807714459,5.53707,2094.0,2093.5,4.619]
[1742807714630,4.7761,2093.8,2093.5,4.619]
[1742807714963,4.77589,2093.9,2093.5,9.39556]
[1742807715263,4.77589,2093.9,2093.5,14.17207]
[1742807715651,4.77589,2093.9,2093.6,4.77642]
[1742807715829,4.77589,2093.9,2093.5,9.39551]
[1742807716026,4.77589,2093.9,2093.5,14.17206]
[1742807716231,4.77589,2093.9,2093.6,0.12477503]
[1742807716652,9.55183,2093.9,2093.6,0.12477503]
[1742807716831,4.776,2093.8,2093.7,0.94639364]
[1742807717159,4.77589,2093.9,2093.7,0.94639364]
[1742807717359,9.55183,2093.9,2093.7,1.07116867]
[1742807717653,11.1872825,2093.9,2093.7,1.07116867]
[1742807718454,6.4113425,2093.9,2093.7,1.07116867]
[1742807718760,4.776,2093.8,2093.7,1.07116867]
[1742807718956,9.4113025,2093.9,2093.7,1.07116867]
[1742807719761,4.776,2093.8,2093.7,1.07116867]
[1742807719957,9.4113025,2093.9,2093.7,1.07116867]
[1742807720659,6.041195,2094.0,2093.7,1.07116867]
[1742807720955,6.041195,2094.0,2093.9,4.77577]
[1742807721158,6.041195,2094.3,2093.8,9.94513]
[1742807721363,6.041195,2094.3,2094.0,9.55081]
[1742807721733,6.041195,2094.3,2094.1,0.1256569]
[1742807722134,10.816155,2094.3,2094.1,0.1256569]
[1742807722869,12.4558565,2094.3,2094.1,0.1256569]
[1742807723038,4.77509,2094.2,2094.1,0.1256569]
[1742807723234,4.77509,2094.2,2093.8,9.94517]
[1742807723433,4.77509,2094.2,2094.1,0.1256569]
[1742807723635,4.77509,2094.2,2093.8,9.94517]
[1742807723974,4.77509,2094.2,2093.8,9.94505]
[1742807724139,4.77509,2094.2,2094.1,0.93728924]
[1742807724341,6.3342145,2094.2,2094.1,0.93728924]
[1742807724767,6.3342145,2094.2,2094.1,1.06294614]
[1742807726110,16.1748095,2094.2,2094.1,0.1256569]
[1742807726391,4.7756,2094.0,2093.8,0.94255061]
[1742807726599,11.615715,2094.2,2093.8,6.26961061]
[1742807726786,6.041195,2094.2,2093.9,4.77566]
[1742807726966,6.041195,2094.3,2093.9,0.62694106]
[1742807727166,6.041195,2094.3,2094.0,9.55086]
[1742807727394,6.041195,2094.3,2094.0,9.3934]
[1742807727772,6.041195,2094.3,2094.0,4.618]
[1742807728151,10.816175,2094.3,2094.0,4.618]
[1742807728985,10.816175,2094.3,2093.8,0.94255061]
[1742807728986,4.77577,2093.9,2093.8,0.94255061]
[1742807729192,7.77577,2093.9,2093.8,0.94255061]
[1742807729507,8.60581,2093.8,2093.6,26.399]
[1742807729818,8.60581,2093.8,2093.7,0.98035745]
[1742807730155,8.60581,2093.8,2093.6,26.399]
[1742807730156,4.77623,2093.7,2093.6,26.399]
[1742807730361,4.77691,2093.5,2093.2,8.34174098]
[1742807730889,4.77695,2093.4,2093.3,0.94821772]
[1742807731099,4.77695,2093.4,2093.3,1.07471429]
[1742807731708,9.55376,2093.5,2093.3,1.07471429]
[1742807731878,4.77685,2093.5,2093.3,1.07471429]
[1742807732080,9.55371,2093.5,2093.3,1.07471429]
[1742807732283,4.77691,2093.4,2093.3,1.07471429]
[1742807733194,6.041195,2093.6,2093.4,4.7767]
[1742807733374,6.041195,2093.6,2093.5,4.77668]
[1742807733577,5.57382,2094.0,2093.6,4.77634]
[1742807733782,5.57382,2094.0,2093.7,4.77617]
[1742807734181,5.57382,2094.0,2093.8,0.12897511]
[1742807734382,5.57382,2094.0,2093.7,4.77617]
[1742807735084,5.57382,2094.0,2093.8,0.12897511]
[1742807735313,5.57382,2094.0,2093.7,4.77617]
[1742807735482,5.57382,2094.0,2093.8,0.12897511]
[1742807735682,10.34952,2094.0,2093.6,9.39334]
[1742807735890,4.77581,2093.9,2093.7,0.12897511]
[1742807736380,5.57382,2094.0,2093.8,0.94429428]
[1742807736884,5.57382,2094.0,2093.9,0.12897511]
[1742807739927,6.041195,2094.2,2093.9,4.90460511]
[1742807739928,10.816345,2094.2,2093.9,4.90460511]
[1742807740216,15.591625,2094.2,2093.9,0.12897511]
[1742807740421,10.816345,2094.2,2093.9,0.12897511]
[1742807740791,10.816345,2094.2,2093.9,4.90465511]
[1742807740992,6.041195,2094.2,2093.9,4.90465511]
[1742807741214,4.77467,2094.4,2094.0,4.77553]
[1742807741412,3.0,2094.4,2094.1,4.77515]
[1742807741620,10.815715,2094.5,2094.1,4.90332848]
[1742807741823,10.815715,2094.5,2094.1,10.74232192]
[1742807742535,10.815715,2094.5,2094.1,5.96700192]
[1742807742536,4.77468,2094.4,2094.1,5.96700192]
[1742807742692,9.54947,2094.4,2094.1,1.19180192]
[1742807742892,4.77468,2094.4,2094.1,0.12800848]
[1742807743403,4.77468,2094.4,2094.1,4.90326848]
[1742807743589,4.77468,2094.4,2094.1,0.12800848]
[1742807743789,4.77468,2094.4,2094.1,4.90331848]
[1742807745140,10.815625,2094.5,2094.3,0.94932955]
[1742807745520,4.77469,2094.4,2094.3,0.94932955]
[1742807745707,4.77469,2094.4,2094.3,1.07637211]
[1742807746108,10.162451,2094.4,2094.3,0.12704256]
[1742807746314,4.77554,2094.0,2093.9,0.95765029]
[1742807746498,4.77554,2094.0,2093.9,1.08469285]
[1742807747632,4.7754,2094.1,2093.9,1.08469285]
[1742807750348,4.77554,2094.0,2093.9,1.08469285]
[1742807750506,9.55091,2094.1,2093.9,1.08469285]
[1742807750704,9.041195,2094.2,2094.0,4.77553]
[1742807750999,6.041195,2094.2,2094.1,0.12712648]
[1742807751206,6.041195,2094.2,2094.1,4.90244648]
[1742807752626,10.815685,2094.5,2094.1,4.90244648]
[1742807753137,3.0,2094.4,2094.1,0.12712648]
[1742807753434,4.77509,2094.2,2093.9,0.95765029]
[1742807753846,4.77554,2094.0,2093.9,0.95765029]
[1742807754949,10.816585,2094.1,2093.9,0.95765029]
[1742807755313,6.041195,2094.1,2093.9,0.95765029]
[1742807756247,6.041195,2094.1,2093.9,5.73335029]
[1742807756415,6.041195,2094.1,2094.0,5.32674]
[1742807756621,6.041195,2094.1,2094.0,9.94174]
[1742807757349,6.041195,2094.1,2094.0,5.1662]
[1742807758351,10.816105,2094.3,2094.0,9.9417]
[1742807758951,10.816105,2094.3,2094.0,5.1662]
[1742807760016,5.5775,2094.2,2094.0,4.615]
[1742807760221,10.816105,2094.3,2094.0,4.615]
[1742807760651,10.816105,2094.3,2094.0,9.39048]
[1742807761226,10.816105,2094.3,2094.1,0.11545636]
[1742807762866,6.041195,2094.6,2094.4,4.77455]
[1742807763240,6.041195,2094.6,2094.5,0.11499505]
[1742807763444,6.041195,2094.8,2094.5,4.88925505]
[1742807763633,6.041195,2094.8,2094.5,0.11499505]
[1742807763970,6.041195,2094.8,2094.6,4.77397]
[1742807764158,12.2716135,2094.8,2094.5,0.11499505]
[1742807764328,12.2716135,2094.8,2094.5,4.77437]
[1742807764528,12.2716135,2094.8,2094.6,0.11499505]
[1742807764953,17.0454835,2094.8,2094.4,9.38944]
[1742807765157,15.2716135,2094.8,2094.7,0.11499505]
[1742807765341,15.2716135,2094.8,2094.4,9.38944]
[1742807765541,13.814995,2094.8,2094.5,0.11499505]
[1742807765756,13.814995,2094.8,2094.5,4.88932505]
[1742807766271,9.041195,2094.8,2094.5,4.88928505]
[1742807766556,6.041195,2094.8,2094.7,4.77395]
[1742807767062,6.041195,2095.0,2094.8,4.77364]
[1742807767546,9.041195,2095.0,2094.9,0.11428222]
[1742807768175,9.041195,2095.0,2094.7,4.77395]
[1742807768352,4.77357,2094.9,2094.6,5.32534]
[1742807768557,13.814615,2095.0,2094.6,10.09928]
[1742807768873,13.814615,2095.0,2094.7,4.77389]
[1742807769029,9.041195,2095.0,2094.8,4.7737]
[1742807769774,9.041195,2095.0,2094.8,4.77361]
[1742807769775,3.0,2095.0,2094.8,4.77361]
[1742807770225,3.0,2095.0,2094.8,9.5472]
[1742807770430,3.0,2095.0,2094.8,4.77359]
[1742807771191,4.77306,2095.1,2094.8,9.38759]
[1742807771906,7.77284,2095.2,2094.8,14.16118]
[1742807772102,6.041195,2095.4,2095.0,0.5512]
[1742807772308,0.7893,2095.5,2095.1,4.77304]
[1742807772454,5.56143,2095.5,2095.1,4.77304]
[1742807772656,5.56143,2095.5,2095.1,4.77293]
[1742807772657,3.0,2095.4,2095.1,4.77293]
[1742807772856,3.0,2095.4,2095.1,9.54582]
[1742807773157,3.0,2095.4,2095.1,4.77289]
[1742807773357,7.77236,2095.4,2095.1,4.77289]
[1742807773595,3.0,2095.4,2095.1,4.77289]
[1742807774286,3.0,2095.4,2095.1,5.305249]
[1742807774488,3.0,2095.4,2095.1,10.078159]
[1742807774671,3.0,2095.4,2095.2,4.77277]
[1742807776100,3.7893,2095.5,2095.2,4.77277]
[1742807776385,3.7893,2095.5,2095.3,0.11000593]
[1742807776758,3.7893,2095.5,2095.2,4.77277]
[1742807776961,3.7893,2095.5,2095.3,0.11000593]
[1742807777179,3.7893,2095.5,2095.2,4.77277]
[1742807777180,8.56145,2095.5,2095.2,4.77277]
[1742807777482,3.7893,2095.5,2095.4,0.11000593]
[1742807777681,3.7893,2095.5,2095.2,4.77269]
[1742807777883,3.7893,2095.5,2095.4,0.11000593]
[1742807778078,3.7893,2095.5,2095.2,4.77269]
[1742807778393,0.8029,2095.4,2094.6,0.5512]
[1742807778683,4.77271,2095.3,2094.9,4.77349]
[1742807779262,16.389025,2095.4,2095.0,4.77319]
[1742807779469,11.616465,2095.4,2095.0,4.77319]
[1742807779671,11.616465,2095.4,2094.9,4.77348]
[1742807779876,9.54546,2095.3,2094.9,4.77348]
[1742807780260,11.616465,2095.4,2094.9,4.77338]
[1742807780461,4.7726,2095.3,2095.0,4.77319]
[1742807780662,4.7726,2095.3,2094.9,4.77338]
[1742807780856,4.77283,2095.2,2094.9,4.77338]
[1742807781386,4.7726,2095.3,2094.7,4.612]
[1742807781387,6.844095,2095.4,2095.1,4.77303]
[1742807781688,6.844095,2095.4,2095.0,4.77325]
[1742807781689,18.47395275,2095.4,2095.0,4.77325]
[1742807781878,9.5454,2095.3,2094.9,4.77349]
[1742807782080,9.54541,2095.3,2094.9,4.77349]
[1742807782395,4.77284,2095.2,2094.9,4.77349]
[1742807782589,4.77304,2095.1,2094.8,4.77357]
[1742807783390,4.77284,2095.2,2094.8,4.77357]
[1742807783588,4.77313,2095.1,2094.8,4.77357]
[1742807783788,4.77368,2094.9,2094.5,9.54863]
[1742807783965,4.77368,2094.9,2094.6,4.612]
[1742807784162,4.77368,2094.9,2094.6,9.38614]
[1742807784364,4.77328,2095.0,2094.6,9.38609]
[1742807784564,4.77328,2095.0,2094.6,9.82878822]
[1742807784880,9.54667,2095.0,2094.6,9.82878822]
[1742807785088,4.77328,2095.0,2094.6,9.82878822]
[1742807785270,4.77328,2095.0,2094.6,14.60288822]
[1742807785474,4.77328,2095.0,2094.6,9.82878822]
[1742807785676,4.77328,2095.0,2094.6,9.82877822]
[1742807785871,4.77328,2095.0,2094.7,4.77394]
[1742807786485,4.77328,2095.0,2094.7,0.44269822]
[1742807786890,6.041195,2095.1,2094.9,5.32452]
[1742807787070,9.041195,2095.3,2095.0,4.77326]
[1742807787477,6.041195,2095.3,2095.0,4.77326]
[1742807788002,6.041195,2095.3,2095.0,4.77312]
[1742807788294,6.041195,2095.3,2095.0,5.66605082]
[1742807788470,6.041195,2095.3,2095.2,4.77281]
[1742807788674,4.77179,2095.7,2095.3,4.77245]
[1742807788675,6.041195,2095.5,2095.3,4.77245]
[1742807788987,6.041195,2095.5,2095.3,9.54489]
[1742807789370,6.041195,2095.5,2095.4,4.77235]
[1742807789566,6.859995,2095.7,2095.4,4.7722]
[1742807789771,12.7948825,2095.7,2095.3,5.21524822]
[1742807789981,8.0231425,2095.7,2095.4,4.77218]
[1742807790178,6.041195,2095.7,2095.6,4.7719]
[1742807790898,6.041195,2095.7,2095.4,4.611]
[1742807791097,6.041195,2095.7,2095.5,0.44269822]
[1742807791397,0.785,2095.6,2095.5,0.54108452]
[1742807791896,6.041195,2096.2,2096.0,4.77099]
[1742807792095,0.8083,2096.3,2096.2,4.77053]
[1742807792397,0.8083,2096.3,2096.2,0.09508099]
[1742807792598,0.8083,2096.5,2096.2,9.63599099]
[1742807792767,6.041195,2096.6,2096.3,4.611]
[1742807792973,4.77,2096.5,2096.3,4.611]
[1742807793296,4.77,2096.5,2096.4,0.09068834]
[1742807793667,7.77,2096.5,2096.4,0.09068834]
[1742807794608,7.77,2096.5,2096.4,0.17778066]
[1742807795188,4.77054,2096.2,2096.0,5.05369822]
[1742807795401,4.77054,2096.2,2096.0,0.44269822]
[1742807795792,4.77016,2096.4,2096.0,0.44269822]
[1742807796100,9.041195,2096.6,2096.3,5.3214]
[1742807796101,6.041195,2096.6,2096.3,5.3214]
[1742807796301,6.041195,2096.6,2096.4,4.76998]
[1742807796478,6.041195,2096.6,2096.4,4.94776066]
[1742807796677,9.041195,2096.6,2096.5,4.76985]
[1742807796918,3.0,2096.6,2096.4,4.94776066]
[1742807797086,3.0,2096.6,2096.4,4.76994]
[1742807797291,3.0,2096.6,2096.5,0.17778066]
[1742807797700,3.0,2096.6,2096.3,10.37418822]
[1742807797879,3.0,2096.6,2096.5,0.17778066]
[1742807798215,5.52436,2096.5,2096.3,5.05269822]
[1742807798384,5.52436,2096.5,2096.3,4.61]
[1742807798579,10.29443,2096.5,2096.3,4.61]
[1742807799308,4.77008,2096.4,2096.3,4.61]
[1742807801494,4.77043,2096.3,2096.0,26.378]
[1742807803317,4.77076,2096.1,2096.0,26.378]
[1742807803515,5.53083,2096.2,2096.0,26.378]
[1742807804107,4.77076,2096.1,2096.0,26.378]
[1742807804420,5.5308,2096.2,2095.8,14.15166]
[1742807804710,10.30149,2096.2,2095.8,9.38031]
[1742807805114,5.5308,2096.2,2095.9,4.7712]
[1742807805412,10.30152,2096.2,2095.8,9.38036]
[1742807805609,5.5308,2096.2,2095.8,14.15171]
[1742807805816,5.5308,2096.2,2095.8,15.65774548]
[1742807805996,5.5308,2096.2,2095.8,10.88638548]
[1742807806828,10.30151,2096.2,2095.8,10.88638548]
[1742807807028,10.30151,2096.2,2095.9,0.08918308]
[1742807807604,5.5308,2096.2,2095.9,0.08918308]
[1742807807919,6.041195,2096.4,2096.0,0.5512]
[1742807808122,6.041195,2096.4,2096.3,5.3215]
[1742807808422,6.041195,2096.9,2096.8,4.76917]
[1742807808796,6.041195,2096.9,2096.7,4.76931]
[1742807808797,9.041195,2096.9,2096.7,4.76931]
[1742807809024,9.041195,2096.9,2096.8,0.0893085]
[1742807809224,6.041195,2096.9,2096.8,0.0893085]
[1742807809527,6.041195,2096.9,2096.5,4.76979]
[1742807809718,6.041195,2097.5,2096.8,5.32019]
[1742807809914,10.808885,2097.5,2097.0,4.76856]
[1742807810224,3.0,2097.4,2097.1,4.76844]
[1742807810393,3.0,2097.4,2097.1,4.76838]
[1742807810595,10.808885,2097.5,2097.1,4.76838]
[1742807810795,3.0,2097.4,2097.1,4.76838]
[1742807811031,3.0,2097.4,2097.1,4.76836]
[1742807811322,12.4497505,2097.5,2097.1,4.76835]
[1742807811529,7.6820605,2097.5,2097.2,4.76815]
[1742807811724,3.0,2097.4,2097.2,4.76815]
[1742807813428,3.0,2097.4,2097.3,4.76803]
[1742807813601,6.041195,2097.8,2097.5,4.76745]
[1742807813926,3.0,2097.7,2097.4,4.7678]
[1742807814103,7.76713,2097.7,2097.4,9.3758]
[1742807814500,3.0,2097.5,2097.4,4.608]
[1742807815122,3.0,2097.5,2097.2,5.31939]
[1742807815832,3.0,2097.5,2097.3,4.76794]
[1742807816001,3.0,2097.6,2097.2,5.31945]